bitfinex-derivatives/quotes_SOLF0:USTF0_20250212
["timestamp","ask_amount","ask_price","bid_price","bid_amount"]
[1739345197436,5.1148,195.54,195.52,0.03718388]
[1739345198137,5.1515767,195.55,195.52,0.03718388]
[1739345198336,0.0369767,195.55,195.52,14.19404278]
[1739345198537,0.0369767,195.55,195.52,9.07874278]
[1739345198938,5.1514767,195.55,195.52,9.07874278]
[1739345200639,0.0369767,195.55,195.52,9.07874278]
[1739345200841,5.115,195.53,195.52,9.07874278]
[1739345201640,5.115,195.53,195.52,0.03718388]
[1739345206642,10.6982356,195.55,195.52,0.03718388]
[1739345207942,5.115,195.53,195.52,0.03718388]
[1739345213239,9.0415589,195.53,195.46,9.0415589]
[1739345213445,5.1162,195.49,195.44,5.1174]
[1739345213841,9.0415589,195.51,195.43,9.0415589]
[1739345214046,9.0415589,195.53,195.47,14.1580589]
[1739345214444,0.0325418,195.52,195.48,0.03918789]
[1739345214640,0.0325418,195.52,195.49,14.1575589]
[1739345217954,0.0325418,195.52,195.49,9.0415589]
[1739345218258,5.1156,195.51,195.48,0.03918789]
[1739345218455,0.0325418,195.52,195.48,0.03918789]
[1739345218656,5.1156,195.51,195.48,0.03918789]
[1739345219160,0.0325418,195.52,195.48,0.03918789]
[1739345219354,9.0415589,195.51,195.48,0.03918789]
[1739345219860,5.1161,195.49,195.48,0.03918789]
[1739345222758,9.0415589,195.51,195.48,0.03918789]
[1739345222958,5.1480418,195.52,195.48,0.03918789]
[1739345223163,0.0325418,195.52,195.48,0.03918789]
[1739345223366,5.1156,195.51,195.48,0.03918789]
[1739345224777,5.1159,195.5,195.48,0.03918789]
[1739345225558,5.1480418,195.52,195.48,0.03918789]
[1739345225758,0.0325418,195.52,195.48,0.03918789]
[1739345226857,5.1156,195.51,195.48,0.03918789]
[1739345232070,0.0325418,195.52,195.48,0.03918789]
[1739345232372,5.1161,195.49,195.48,0.03918789]
[1739345232566,0.0325418,195.52,195.48,0.03918789]
[1739345232872,5.1156,195.51,195.48,0.03918789]
[1739345233570,5.1158,195.5,195.48,0.03918789]
[1739345237174,0.0325418,195.52,195.48,0.03918789]
[1739345237374,5.1161,195.49,195.48,0.03918789]
[1739345240069,14.1573589,195.51,195.48,0.03918789]
[1739345240375,9.0415589,195.51,195.48,0.03918789]
[1739345241375,5.116,195.5,195.48,0.03918789]
[1739345243373,5.1161,195.49,195.48,0.03918789]
[1739345246478,5.1479418,195.52,195.48,0.03918789]
[1739345247678,0.0325418,195.52,195.48,0.03918789]
[1739345247881,5.1156,195.51,195.48,0.03918789]
[1739345248879,0.0325418,195.52,195.48,0.03918789]
[1739345249082,5.1158,195.5,195.48,0.03918789]
[1739345249783,0.0325418,195.52,195.48,0.03918789]
[1739345249983,5.1480418,195.52,195.48,0.03918789]
[1739345251588,0.0325418,195.52,195.5,5.1156]
[1739345252987,0.0325418,195.52,195.51,5.1156]
[1739345253485,0.0325418,195.52,195.51,14.1571589]
[1739345255385,13.5951589,195.61,195.51,9.0415589]
[1739345255588,13.5951589,195.61,195.55,5.1143]
[1739345256090,5.1135,195.59,195.55,5.1143]
[1739345256392,5.1135,195.59,195.54,14.1563589]
[1739345256587,9.08034918,195.59,195.55,0.03405349]
[1739345256891,5.1142,195.57,195.52,9.0415589]
[1739345257091,5.1142,195.57,195.55,0.03851012]
[1739345258987,5.15244174,195.59,195.55,5.15301012]
[1739345259193,0.03894174,195.59,195.55,5.15301012]
[1739345259593,0.03894174,195.59,195.55,0.03851012]
[1739345259792,0.03894174,195.59,195.56,5.114]
[1739345260185,0.03894174,195.59,195.56,9.0415589]
[1739345260685,0.03894174,195.59,195.57,5.114]
[1739345261695,0.03894174,195.59,195.56,14.1557589]
[1739345262294,0.03894174,195.59,195.55,5.15301012]
[1739345262592,0.03894174,195.59,195.55,0.03851012]
[1739345263695,0.03894174,195.59,195.55,5.15301012]
[1739345264393,5.15244174,195.59,195.55,5.15301012]
[1739345264596,9.08050064,195.59,195.55,0.03851012]
[1739345264796,5.1139,195.58,195.55,0.03851012]
[1739345265594,0.03894174,195.59,195.55,0.03851012]
[1739345266099,0.03894174,195.59,195.56,5.114]
[1739345266298,0.03894174,195.59,195.55,0.03851012]
[1739345266894,0.03894174,195.59,195.56,9.0415589]
[1739345267094,0.03894174,195.59,195.58,5.1137]
[1739345269801,0.03894174,195.59,195.56,14.1555589]
[1739345270098,0.03894174,195.59,195.56,9.0415589]
[1739345270702,0.03894174,195.59,195.57,5.1137]
[1739345271202,0.03894174,195.59,195.56,9.0415589]
[1739345271500,0.03894174,195.59,195.58,5.1137]
[1739345271702,4.174e-05,195.59,195.58,14.1552589]
[1739345273694,4.174e-05,195.59,195.56,14.1555589]
[1739345275399,4.174e-05,195.59,195.57,5.1139]
[1739345276004,4.174e-05,195.59,195.58,9.0415589]
[1739345276205,4.174e-05,195.59,195.58,14.1552589]
[1739345280810,4.174e-05,195.59,195.58,5.1137]
[1739345281011,4.174e-05,195.59,195.56,9.0415589]
[1739345281510,4.174e-05,195.59,195.57,5.1138]
[1739345281909,4.174e-05,195.59,195.56,9.0415589]
[1739345282411,4.174e-05,195.59,195.58,14.1552589]
[1739345283509,4.174e-05,195.59,195.57,5.114]
[1739345284710,4.174e-05,195.59,195.56,5.1142]
[1739345286112,4.174e-05,195.59,195.57,5.1139]
[1739345286305,4.174e-05,195.59,195.55,0.03851012]
[1739345286510,9.04160064,195.59,195.55,0.03851012]
[1739345287306,4.174e-05,195.59,195.55,0.03851012]
[1739345288012,4.174e-05,195.59,195.56,5.1142]
[1739345289216,4.174e-05,195.59,195.55,0.03851012]
[1739345289415,4.174e-05,195.59,195.56,9.0415589]
[1739345291916,4.174e-05,195.59,195.55,5.15301012]
[1739345292516,4.174e-05,195.59,195.55,0.03851012]
[1739345292718,5.11374174,195.59,195.55,0.03851012]
[1739345292918,4.174e-05,195.59,195.55,0.03851012]
[1739345293817,5.1138,195.58,195.55,0.03851012]
[1739345295420,4.174e-05,195.59,195.55,0.03851012]
[1739345295421,5.11354174,195.59,195.55,0.03851012]
[1739345295622,4.174e-05,195.59,195.55,0.03851012]
[1739345296120,4.174e-05,195.59,195.56,9.0415589]
[1739345297321,4.174e-05,195.59,195.58,5.1137]
[1739345300021,4.174e-05,195.59,195.56,9.0415589]
[1739345300321,4.174e-05,195.59,195.55,0.03851012]
[1739345300920,9.04160064,195.59,195.55,0.03851012]
[1739345301120,10.51460064,195.59,195.55,0.03851012]
[1739345301322,5.1141,195.57,195.55,0.03851012]
[1739345302322,17.12920064,195.59,195.55,0.03851012]
[1739345303625,17.12920064,195.59,195.55,5.15301012]
[1739345304128,5.1138,195.58,195.55,0.03851012]
[1739345305227,6.58654174,195.59,195.55,0.03851012]
[1739345305428,1.47304174,195.59,195.55,0.03851012]
[1739345306828,5.1137,195.58,195.55,0.03851012]
[1739345308030,6.58654174,195.59,195.55,5.15301012]
[1739345308830,5.1137,195.58,195.55,5.15301012]
[1739345311132,1.47304174,195.59,195.55,0.03851012]
[1739345311330,4.174e-05,195.59,195.58,9.0415589]
[1739345311931,4.174e-05,195.59,195.58,14.1552589]
[1739345313131,4.174e-05,195.59,195.56,14.1555589]
[1739345314030,4.174e-05,195.59,195.57,5.1139]
[1739345314426,4.174e-05,195.59,195.56,9.0415589]
[1739345314622,4.174e-05,195.59,195.58,5.1137]
[1739345317037,4.174e-05,195.59,195.58,14.1552589]
[1739345318935,1.4962,195.7,195.58,9.0415589]
[1739345319137,1.4962,195.7,195.64,9.0415589]
[1739345319334,5.1109,195.69,195.64,9.0415589]
[1739345320336,0.03244404,195.68,195.65,5.14447629]
[1739345322238,0.03244404,195.68,195.66,5.1114]
[1739345323239,0.03244404,195.68,195.66,9.0415589]
[1739345323443,0.03244404,195.68,195.67,5.1114]
[1739345324738,4.404e-05,195.68,195.67,5.1114]
[1739345332448,4.404e-05,195.68,195.66,9.0415589]
[1739345333047,4.404e-05,195.68,195.67,5.1114]
[1739345339055,4.404e-05,195.68,195.66,14.1531589]
[1739345340554,4.404e-05,195.68,195.67,5.1114]
[1739345342154,4.404e-05,195.68,195.66,14.1531589]
[1739345342751,4.404e-05,195.68,195.66,9.0415589]
[1739345342952,4.404e-05,195.68,195.67,5.1114]
[1739345344260,4.404e-05,195.68,195.66,14.1531589]
[1739345344664,4.404e-05,195.68,195.66,9.0415589]
[1739345344861,4.404e-05,195.68,195.65,0.03277629]
[1739345345761,4.404e-05,195.68,195.65,5.14457629]
[1739345346864,4.404e-05,195.68,195.65,0.03277629]
[1739345347160,4.404e-05,195.68,195.66,5.1115]
[1739345348557,4.404e-05,195.68,195.67,5.1114]
[1739345349953,4.404e-05,195.68,195.66,14.1531589]
[1739345350160,4.404e-05,195.68,195.66,9.0415589]
[1739345350360,4.404e-05,195.68,195.65,0.03277629]
[1739345350760,4.404e-05,195.68,195.67,5.1114]
[1739345353164,4.404e-05,195.68,195.66,14.1531589]
[1739345353366,4.404e-05,195.68,195.66,5.1116]
[1739345354259,4.404e-05,195.68,195.65,0.03277629]
[1739345354458,4.404e-05,195.68,195.65,5.14467629]
[1739345354967,4.404e-05,195.68,195.66,5.1116]
[1739345355563,4.404e-05,195.68,195.65,5.14467629]
[1739345358165,5.11114404,195.68,195.65,0.03277629]
[1739345358769,4.404e-05,195.68,195.65,5.14457629]
[1739345359169,4.404e-05,195.68,195.65,0.03277629]
[1739345359971,14.1531589,195.67,195.65,0.03277629]
[1739345360166,9.0415589,195.67,195.65,0.03277629]
[1739345360564,5.1116,195.66,195.65,0.03277629]
[1739345361070,9.0415589,195.67,195.61,5.1129]
[1739345361071,5.1119,195.65,195.61,5.1129]
[1739345361272,15.6993589,195.65,195.6,9.0415589]
[1739345361472,10.5874589,195.65,195.58,9.0415589]
[1739345362066,20.00052075,195.74,195.63,9.0415589]
[1739345362266,0.93383878,195.73,195.67,9.0415589]
[1739345362472,0.03496195,195.7,195.67,14.1526589]
[1739345362672,0.03496195,195.7,195.68,0.03495719]
[1739345368081,5.14566195,195.7,195.68,0.03495719]
[1739345368982,0.03496195,195.7,195.68,0.03495719]
[1739345369675,5.14556195,195.7,195.68,0.03495719]
[1739345370086,0.03496195,195.7,195.68,0.03495719]
[1739345370385,5.1108,195.69,195.68,0.03495719]
[1739345372384,10.69532085,195.7,195.63,9.0415589]
[1739345372685,5.1115,195.67,195.63,9.0415589]
[1739345372890,9.0415589,195.66,195.59,66.85275271]
[1739345373575,0.03684917,195.64,195.61,0.03313892]
[1739345373779,0.03684917,195.64,195.61,5.14603892]
[1739345374387,0.03684917,195.64,195.61,0.03313892]
[1739345374586,0.03684917,195.64,195.61,9.07469782]
[1739345375081,0.03684917,195.64,195.61,14.18739782]
[1739345375589,0.03684917,195.64,195.62,5.1125]
[1739345375886,0.03684917,195.64,195.61,9.07469782]
[1739345376187,0.03684917,195.64,195.61,14.18759782]
[1739345377096,0.03684917,195.64,195.62,5.1126]
[1739345378790,0.03684917,195.64,195.63,5.1124]
[1739345379387,0.03684917,195.64,195.61,9.07469782]
[1739345379684,5.1124,195.63,195.61,9.07469782]
[1739345380086,0.03684917,195.64,195.61,9.07469782]
[1739345380691,9.07840807,195.64,195.61,0.03313892]
[1739345380889,5.1126,195.63,195.61,0.03313892]
[1739345382491,5.1124,195.63,195.61,0.03313892]
[1739345383392,5.1127,195.62,195.61,0.03313892]
[1739345384896,5.1124,195.63,195.61,0.03313892]
[1739345385587,9.07840807,195.64,195.61,0.03313892]
[1739345385789,5.1127,195.62,195.61,0.03313892]
[1739345396302,14.1542589,195.62,195.61,0.03313892]
[1739345400520,5.1138,195.58,195.54,5.1147]
[1739345400721,9.0415589,195.62,195.55,9.0415589]
[1739345401019,9.0415589,195.62,195.57,9.0415589]
[1739345401218,5.113,195.61,195.57,14.1552589]
[1739345401419,1.4855,195.63,195.57,9.0415589]
[1739345401619,0.0364511,195.61,195.59,9.0415589]
[1739345401821,9.0415589,195.66,195.59,9.0415589]
[1739345402011,0.03277949,195.62,195.6,5.1132]
[1739345402218,0.03277949,195.62,195.59,9.0415589]
[1739345402417,0.03277949,195.62,195.58,0.03815124]
[1739345402613,9.07433839,195.62,195.58,0.03815124]
[1739345404921,5.1132,195.61,195.58,0.03815124]
[1739345405623,9.07433839,195.62,195.58,0.03815124]
[1739345405819,0.03277949,195.62,195.58,0.03815124]
[1739345406119,0.03277949,195.62,195.59,9.0415589]
[1739345406522,0.03277949,195.62,195.61,5.1129]
[1739345406918,0.03277949,195.62,195.61,14.1544589]
[1739345407623,9.0415589,195.7,195.61,9.0415589]
[1739345407819,9.0415589,195.7,195.65,5.1119]
[1739345408020,9.0415589,195.7,195.64,9.0415589]
[1739345408416,9.0415589,195.7,195.66,5.1115]
[1739345408620,9.0415589,195.7,195.64,9.0415589]
[1739345408825,1.66856647,195.69,195.66,0.03479654]
[1739345410123,0.03606647,195.69,195.66,14.18795544]
[1739345410331,0.03606647,195.69,195.66,9.07635544]
[1739345411230,0.03606647,195.69,195.67,5.1114]
[1739345411831,0.03606647,195.69,195.68,14.1526589]
[1739345412733,15.7155589,195.76,195.71,5.1102]
[1739345413522,14.1506589,195.76,195.71,5.1102]
[1739345413835,0.03413991,195.75,195.72,0.03501411]
[1739345415033,5.1095,195.74,195.72,0.03501411]
[1739345417521,0.03413991,195.75,195.72,0.03501411]
[1739345417932,9.0415589,195.74,195.72,0.03501411]
[1739345418436,9.0415589,195.74,195.65,5.1119]
[1739345418638,9.0415589,195.7,195.62,9.0415589]
[1739345418827,9.0415589,195.68,195.62,9.0415589]
[1739345419032,5.1117,195.66,195.62,9.0415589]
[1739345419735,5.14859416,195.66,195.62,9.08067781]
[1739345420033,9.07845306,195.66,195.62,0.03911891]
[1739345420233,9.0415589,195.64,195.62,0.03911891]
[1739345420435,5.1124,195.63,195.62,0.03911891]
[1739345420627,9.0415589,195.64,195.62,0.03911891]
[1739345421030,14.19025306,195.66,195.62,0.03911891]
[1739345421842,9.07845306,195.66,195.62,0.03911891]
[1739345423440,9.07845306,195.66,195.62,5.15181891]
[1739345425643,0.03689416,195.66,195.65,14.1534589]
[1739345427742,0.03689416,195.66,195.65,5.1119]
[1739345428140,5.1096,195.74,195.7,5.1106]
[1739345429141,5.1096,195.74,195.64,14.1059291]
[1739345429341,5.14460263,195.74,195.7,0.03786529]
[1739345430243,5.1099,195.73,195.7,0.03786529]
[1739345431245,5.1103,195.71,195.7,0.03786529]
[1739345431444,0.03500263,195.74,195.7,0.03786529]
[1739345432844,5.14480263,195.74,195.7,0.03786529]
[1739345433845,5.1098,195.73,195.7,0.03786529]
[1739345434344,0.03500263,195.74,195.7,0.03786529]
[1739345434544,5.14450263,195.74,195.7,0.03786529]
[1739345435942,5.14450263,195.74,195.7,5.14836529]
[1739345436544,5.14450263,195.74,195.7,0.03786529]
[1739345436946,5.1099,195.73,195.7,0.03786529]
[1739345437336,0.03500263,195.74,195.7,0.03786529]
[1739345437541,5.1099,195.73,195.7,0.03786529]
[1739345438545,0.03500263,195.74,195.7,0.03786529]
[1739345439345,5.1099,195.73,195.7,0.03786529]
[1739345439745,0.03500263,195.74,195.7,0.03786529]
[1739345440944,5.1099,195.73,195.7,0.03786529]
[1739345441248,14.1059291,195.73,195.61,14.1059291]
[1739345441548,5.1113,195.68,195.63,5.1124]
[1739345441748,14.1059291,195.73,195.61,14.1059291]
[1739345441947,0.9339131,195.72,195.61,14.1059291]
[1739345442149,5.1116,195.67,195.61,5.1129]
[1739345442446,0.03451866,195.66,195.62,0.03225626]
[1739345442850,5.14631866,195.66,195.62,0.03225626]
[1739345443749,5.1122,195.64,195.62,0.03225626]
[1739345444446,0.03451866,195.66,195.62,0.03225626]
[1739345444650,0.03451866,195.66,195.62,5.14485626]
[1739345445551,0.03451866,195.66,195.62,0.03225626]
[1739345446142,5.1129,195.62,195.56,5.114]
[1739345446346,1.5108,195.66,195.52,115.3059291]
[1739345446749,5.113,195.61,195.55,5.1145]
[1739345447048,14.1059291,195.64,195.52,115.3059291]
[1739345447352,0.03629822,195.6,195.56,0.03891389]
[1739345447752,0.03629822,195.6,195.56,9.07723928]
[1739345447949,0.03629822,195.6,195.56,14.19123928]
[1739345448147,9.822e-05,195.6,195.58,9.03832539]
[1739345448350,9.03832539,195.7,195.58,9.03832539]
[1739345448550,14.14912539,195.7,195.65,9.03832539]
[1739345448853,9.03832539,195.7,195.65,9.03832539]
[1739345449048,14.14862539,195.72,195.67,5.1113]
[1739345449256,88.59449117,195.73,195.67,9.03832539]
[1739345449454,0.03287897,195.71,195.69,9.03832539]
[1739345449651,0.03287897,195.71,195.69,5.1108]
[1739345450851,0.03287897,195.71,195.68,5.1452845]
[1739345451958,0.03287897,195.71,195.7,5.1106]
[1739345452855,0.03287897,195.71,195.69,14.10292567]
[1739345453557,0.03287897,195.71,195.7,5.1106]
[1739345456549,0.03287897,195.71,195.68,0.0341845]
[1739345461456,0.03287897,195.71,195.6,14.10292567]
[1739345461661,14.10292567,195.7,195.6,14.10292567]
[1739345461858,14.10292567,195.7,195.57,14.10292567]
[1739345462560,5.1111,195.68,195.63,5.1124]
[1739345462761,0.03549647,195.65,195.63,5.1124]
[1739345463265,0.03549647,195.65,195.62,0.03780635]
[1739345463757,0.03549647,195.65,195.63,14.10292567]
[1739345463968,219.0428808,195.77,195.63,14.10292567]
[1739345464163,0.9337385,195.76,195.68,14.10292567]
[1739345464358,5.1091,195.76,195.68,14.10292567]
[1739345464660,223.8964796,195.77,195.65,14.10292567]
[1739345464860,212.93751775,195.77,195.65,14.10292567]
[1739345465066,0.03919352,195.73,195.69,0.03527967]
[1739345468567,5.1105,195.71,195.69,0.03527967]
[1739345469268,0.03919352,195.73,195.69,0.03527967]
[1739345471675,5.14899352,195.73,195.69,0.03527967]
[1739345473670,0.03919352,195.73,195.69,0.03527967]
[1739345475175,0.03919352,195.73,195.7,5.1106]
[1739345475776,0.03919352,195.73,195.69,0.03527967]
[1739345475984,0.03919352,195.73,195.72,5.1101]
[1739345476475,0.03919352,195.73,195.69,0.03527967]
[1739345476675,0.03919352,195.73,195.71,5.1103]
[1739345476871,0.03919352,195.73,195.69,0.03527967]
[1739345477067,5.14899352,195.73,195.69,0.03527967]
[1739345478080,5.1104,195.71,195.69,0.03527967]
[1739345481376,5.14919352,195.73,195.69,0.03527967]
[1739345481877,0.03919352,195.73,195.69,0.03527967]
[1739345482278,0.97291676,195.73,195.69,0.03527967]
[1739345482676,5.1106,195.7,195.69,0.03527967]
[1739345482875,0.03919352,195.73,195.69,0.03527967]
[1739345483477,0.9730135,195.73,195.69,0.03527967]
[1739345484480,0.03919352,195.73,195.69,0.03527967]
[1739345484681,0.97304118,195.73,195.69,0.03527967]
[1739345484883,5.1106,195.7,195.69,0.03527967]
[1739345486184,5.1103,195.72,195.69,0.03527967]
[1739345486379,0.03919352,195.73,195.69,0.03527967]
[1739345488082,5.1104,195.71,195.69,0.03527967]
[1739345488284,0.03919352,195.73,195.69,0.03527967]
[1739345488680,5.1106,195.7,195.69,0.03527967]
[1739345488876,1.6186,195.72,195.62,19.21542567]
[1739345489278,14.10292567,195.71,195.59,65.31447338]
[1739345489777,0.93398398,195.7,195.59,65.31447338]
[1739345489977,1.54,195.69,195.59,70.42767338]
[1739345490178,0.03500716,195.66,195.63,0.03756546]
[1739345491181,5.1122,195.64,195.63,0.03756546]
[1739345494587,5.14660716,195.66,195.63,0.03756546]
[1739345495295,0.03500716,195.66,195.63,0.03756546]
[1739345495490,5.1121,195.65,195.63,0.03756546]
[1739345496594,5.14670716,195.66,195.63,0.03756546]
[1739345496787,0.03500716,195.66,195.63,0.03756546]
[1739345497497,0.03500716,195.66,195.65,5.1119]
[1739345498188,0.03500716,195.66,195.65,19.21482567]
[1739345498385,1.6184,195.73,195.68,5.111]
[1739345499593,0.03873585,195.72,195.69,0.03899296]
[1739345500093,0.03873585,195.72,195.69,5.14979296]
[1739345500692,0.03873585,195.72,195.69,0.03899296]
[1739345502394,0.03873585,195.72,195.71,5.1103]
[1739345507600,0.03873585,195.72,195.71,19.21322567]
[1739345509504,4.80426,195.78,195.71,19.21302567]
[1739345510199,5.109,195.76,195.71,19.21302567]
[1739345510701,0.02928426,195.75,195.71,19.21302567]
[1739345511001,0.02928426,195.75,195.73,5.1097]
[1739345511298,0.02928426,195.75,195.71,14.10292567]
[1739345512803,5.1096,195.74,195.71,14.10292567]
[1739345512997,5.1096,195.74,195.7,5.1105]
[1739345513402,5.13858426,195.75,195.71,5.1103]
[1739345513602,0.02928426,195.75,195.71,5.1103]
[1739345513903,0.02928426,195.75,195.69,0.03899296]
[1739345514107,0.02928426,195.75,195.71,14.10292567]
[1739345515807,0.02928426,195.75,195.74,5.1095]
[1739345521007,0.02928426,195.75,195.71,14.10292567]
[1739345521311,0.02928426,195.75,195.72,5.1098]
[1739345521611,0.02928426,195.75,195.74,9.0228876]
[1739345524514,0.02928426,195.75,195.74,14.1323876]
[1739345526611,4.80426,195.78,195.77,14.1316876]
[1739345527007,13.6379876,195.88,195.77,9.0228876]
[1739345527203,13.6379876,195.88,195.83,9.0228876]
[1739345527613,13.6379876,195.88,195.84,0.0331857]
[1739345527813,5.1067,195.86,195.84,0.0331857]
[1739345528209,13.6379876,195.88,195.84,0.0331857]
[1739345529109,5.1062,195.87,195.84,0.0331857]
[1739345529319,3.0721,195.88,195.84,0.0331857]
[1739345529808,86.95819117,195.92,195.84,0.0331857]
[1739345530014,0.93297568,195.91,195.84,0.0331857]
[1739345530213,86.95819117,195.92,195.84,0.0331857]
[1739345530608,5.1056,195.89,195.84,0.0331857]
[1739345531817,5.1056,195.89,195.84,5.1400857]
[1739345532915,3.041,195.94,195.84,0.0331857]
[1739345533218,0.93287765,195.93,195.84,0.0331857]
[1739345533617,15.01661369,195.93,195.84,0.0331857]
[1739345533918,0.93287765,195.92,195.84,0.0331857]
[1739345534917,5.1067,195.85,195.84,0.0331857]
[1739345535718,209.08373604,195.93,195.84,0.0331857]
[1739345535912,0.93294429,195.92,195.84,5.1399857]
[1739345536115,5.106,195.88,195.84,0.0331857]
[1739345536619,209.08373604,195.93,195.84,0.0331857]
[1739345536819,0.93293293,195.92,195.84,0.0331857]
[1739345537416,5.1059,195.88,195.84,0.0331857]
[1739345538025,5.1062,195.87,195.84,0.0331857]
[1739345538218,209.08373604,195.93,195.84,0.0331857]
[1739345538420,0.93293603,195.92,195.84,0.0331857]
[1739345538618,29.42373604,195.87,195.71,14.08373604]
[1739345538823,14.08373604,195.8,195.67,14.08373604]
[1739345539214,5.1096,195.74,195.67,14.08373604]
[1739345539419,5.1096,195.74,195.64,60.01736268]
[1739345539722,5.1098,195.73,195.64,21.1784653]
[1739345539921,0.03251935,195.71,195.67,0.03909068]
[1739345541323,0.03251935,195.71,195.68,5.1111]
[1739345542018,0.03251935,195.71,195.7,5.1106]
[1739345542730,0.03251935,195.71,195.69,5.1108]
[1739345543021,0.03251935,195.71,195.67,14.12282672]
[1739345543324,0.03251935,195.71,195.7,5.1106]
[1739345543724,14.08373604,195.83,195.7,14.08373604]
[1739345543925,5.1085,195.78,195.73,5.1097]
[1739345544623,5.1082,195.8,195.74,5.1094]
[1739345544823,14.08373604,195.83,195.75,0.03433984]
[1739345545223,5.1082,195.79,195.75,0.03433984]
[1739345545426,14.08373604,195.83,195.75,0.03433984]
[1739345545624,5.108,195.8,195.75,0.03433984]
[1739345545820,5.108,195.8,195.75,5.14353984]
[1739345547724,5.1077,195.82,195.76,5.109]
[1739345547931,14.08373604,195.83,195.76,5.109]
[1739345548429,5.1083,195.79,195.75,0.03433984]
[1739345550133,5.1076,195.82,195.77,5.1086]
[1739345550428,14.08373604,195.89,195.76,14.08373604]
[1739345550633,14.08373604,195.89,195.78,0.03498914]
[1739345550932,14.08373604,195.89,195.82,5.1074]
[1739345551231,14.08373604,195.89,195.79,14.08373604]
[1739345551232,14.08373604,195.92,195.79,14.08373604]
[1739345551430,14.08373604,195.92,195.84,0.03313279]
[1739345551726,14.08373604,195.92,195.84,5.13993279]
[1739345551727,5.1059,195.88,195.84,5.13993279]
[1739345551934,5.1059,195.88,195.84,0.03313279]
[1739345552129,14.08373604,195.92,195.84,0.03313279]
[1739345552832,5.1056,195.9,195.85,5.1066]
[1739345553033,14.08373604,195.92,195.84,0.03313279]
[1739345553229,5.1065,195.86,195.84,0.03313279]
[1739345554036,5.1061,195.88,195.84,0.03313279]
[1739345554337,14.08373604,195.92,195.84,0.03313279]
[1739345555232,5.1054,195.91,195.84,0.03313279]
[1739345556330,4.6604,195.93,195.84,0.03313279]
[1739345556533,4.6604,195.93,195.85,14.08373604]
[1739345556931,9.765,195.93,195.87,5.1059]
[1739345557534,9.765,195.93,195.88,0.03625541]
[1739345557935,8.1545,195.93,195.88,0.03625541]
[1739345558333,5.1049,195.92,195.88,0.03625541]
[1739345559131,3.0499,195.93,195.88,0.03625541]
[1739345560735,8.1545,195.93,195.88,0.03625541]
[1739345561537,5.1046,195.93,195.88,0.03625541]
[1739345562436,5.1049,195.92,195.88,0.03625541]
[1739345562635,14.08373604,195.95,195.88,0.03625541]
[1739345562935,14.08373604,195.95,195.88,5.14215541]
[1739345563240,14.08373604,195.95,195.88,0.03625541]
[1739345563634,5.1049,195.92,195.88,0.03625541]
[1739345564238,14.08373604,195.95,195.88,0.03625541]
[1739345564439,5.1046,195.93,195.88,0.03625541]
[1739345565242,5.1046,195.93,195.88,5.14215541]
[1739345565445,3.1315,196.0,195.91,14.08373604]
[1739345565943,3.1315,196.0,195.94,0.03863386]
[1739345567143,5.1033,195.98,195.94,0.03863386]
[1739345567338,3.1315,196.0,195.94,0.03863386]
[1739345567736,5.1041,195.95,195.94,0.03863386]
[1739345568348,5.1052,195.91,195.82,14.08373604]
[1739345568542,14.08373604,195.95,195.85,5.1066]
[1739345568743,14.08373604,195.92,195.85,5.1066]
[1739345568939,5.1055,195.9,195.82,14.08373604]
[1739345569148,14.08373604,195.92,195.83,5.107]
[1739345569345,14.08373604,195.92,195.82,14.08373604]
[1739345569552,0.03521527,195.89,195.86,0.03853759]
[1739345570649,5.1062,195.87,195.86,0.03853759]
[1739345570850,14.11895131,195.89,195.76,14.08373604]
[1739345571045,14.08373604,195.86,195.76,14.08373604]
[1739345571950,0.03265736,195.83,195.79,0.03367715]
[1739345572649,5.13985736,195.83,195.79,0.03367715]
[1739345573353,0.03265736,195.83,195.79,0.03367715]
[1739345574146,5.1076,195.82,195.79,0.03367715]
[1739345574346,0.03265736,195.83,195.79,0.03367715]
[1739345576347,0.03265736,195.83,195.82,14.08373604]
[1739345576751,0.03265736,195.83,195.82,19.19123604]
[1739345577051,1.5985,195.95,195.82,14.08373604]
[1739345577253,6.7028,195.95,195.86,14.08373604]
[1739345577852,1.5985,195.95,195.9,5.1054]
[1739345578053,0.03473222,195.92,195.9,5.1054]
[1739345578642,0.03473222,195.92,195.91,5.1051]
[1739345578847,0.03473222,195.92,195.89,0.03472315]
[1739345580052,5.1051,195.91,195.89,0.03472315]
[1739345580249,0.03473222,195.92,195.89,0.03472315]
[1739345580459,14.11846826,195.92,195.8,15.63173604]
[1739345580751,5.1064,195.87,195.8,5.1078]
[1739345580952,14.08373604,195.89,195.8,5.1078]
[1739345581146,14.08373604,195.89,195.77,14.08373604]
[1739345581351,14.08373604,195.89,195.81,5.1076]
[1739345581552,14.08373604,195.89,195.81,0.03826227]
[1739345581553,0.03838683,195.85,195.81,0.03826227]
[1739345582655,0.03838683,195.85,195.81,5.14596227]
[1739345583054,0.03838683,195.85,195.81,0.03826227]